bitfinex/quotes_SOLUSD_20260120
["timestamp","ask_amount","ask_price","bid_price","bid_amount"]
[1768919758338,6.97227101,129.09,129.04,27.58402922]
[1768919758516,4.0976245,129.12,129.06,2.87464651]
[1768919758717,6.97227101,129.12,129.07,2.87464651]
[1768919759229,2.87464651,129.13,129.09,2.87464651]
[1768919759439,4.0976245,129.13,129.09,2.87464651]
[1768919759742,6.97227101,129.13,129.09,2.87464651]
[1768919759915,4.0976245,129.13,129.09,2.87464651]
[1768919760119,4.0976245,129.13,129.04,16.96]
[1768919760120,6.97227101,129.1,129.04,16.96]
[1768919760441,6.97227101,129.1,129.06,2.87464651]
[1768919760832,4.0976245,129.06,128.98,0.49902186]
[1768919761044,2.87464651,129.05,129.0,2.87464651]
[1768919761230,6.97227101,129.05,128.98,0.49902186]
[1768919761422,6.97227101,129.04,128.99,7.75253895]
[1768919761628,4.0976245,129.06,129.01,2.87464651]
[1768919761853,6.97227101,129.06,129.02,2.87464651]
[1768919762152,6.97227101,129.06,129.02,10.62534829]
[1768919762446,16.96,129.12,129.05,3.37366837]
[1768919762447,6.97227101,129.12,129.05,3.37366837]
[1768919762742,6.97227101,129.12,129.02,7.75070178]
[1768919762743,6.97227101,129.14,129.1,2.87464651]
[1768919762944,2.87464651,129.15,129.1,2.87464651]
[1768919763147,6.97227101,129.16,129.12,2.87464651]
[1768919763347,4.0976245,129.16,129.13,2.87464651]
[1768919763528,4.0976245,129.16,129.12,2.87464651]
[1768919763858,4.0976245,129.14,129.08,16.96]
[1768919764051,4.0976245,129.14,129.1,2.87464651]
[1768919764237,6.97227101,129.14,129.1,2.87464651]
[1768919764438,4.0976245,129.13,129.09,2.87464651]
[1768919764749,4.0976245,129.13,129.09,10.62114512]
[1768919764933,4.0976245,129.13,129.1,2.87464651]
[1768919765140,6.97227101,129.15,129.1,10.62055311]
[1768919765336,4.0976245,129.15,129.11,2.87464651]
[1768919765552,4.0976245,129.19,129.14,2.87464651]
[1768919765734,6.97227101,129.19,129.14,2.87464651]
[1768919765937,6.97227101,129.19,129.11,0.49902186]
[1768919766253,4.0976245,129.15,129.11,2.87464651]
[1768919766640,6.97227101,129.14,129.1,2.87464651]
[1768919766835,4.0976245,129.13,129.09,2.87464651]
[1768919767161,6.97227101,129.12,129.08,16.96]
[1768919767341,4.0976245,129.1,129.06,10.62260721]
[1768919767647,6.97227101,129.1,129.05,27.58310919]
[1768919767851,4.0976245,129.1,129.06,2.87464651]
[1768919768053,6.97227101,129.08,129.01,19.87705758]
[1768919768237,2.87464651,129.05,129.0,10.62619723]
[1768919768447,2.87464651,129.05,129.01,7.75133515]
[1768919768448,6.97227101,129.05,129.01,7.75133515]
[1768919768645,6.97227101,129.05,129.0,10.62638456]
[1768919768953,4.0976245,129.11,129.04,2.87464651]
[1768919769163,6.97227101,129.08,129.03,2.87464651]
[1768919769343,2.87464651,129.08,129.04,2.87464651]
[1768919769542,6.97227101,129.11,129.07,2.87464651]
[1768919769747,4.0976245,129.12,129.08,2.87464651]
[1768919769946,6.97227101,129.12,129.08,2.87464651]
[1768919770146,6.97227101,129.12,129.07,2.87464651]
[1768919770459,4.0976245,129.1,129.06,10.62254081]
[1768919770851,4.0976245,129.1,129.04,19.87186586]
[1768919771056,7.74475554,129.12,129.04,19.87186586]
[1768919771057,6.97227101,129.08,129.04,10.62378188]
[1768919771248,6.97227101,129.08,129.04,2.87464651]
[1768919771559,6.97227101,129.08,129.03,27.58454935]
[1768919771753,6.97227101,129.08,129.02,19.37627613]
[1768919771754,4.0976245,129.08,129.04,10.62389261]
[1768919771957,27.10658949,129.12,129.01,2.87464651]
[1768919771958,4.0976245,129.1,129.06,2.87464651]
[1768919772206,6.97227101,129.11,129.07,2.87464651]
[1768919772455,4.0976245,129.09,129.05,10.62337616]
[1768919772651,4.0976245,129.09,129.06,10.62260953]
[1768919772862,4.0976245,129.12,129.08,2.87464651]
[1768919773050,4.0976245,129.12,129.04,16.98]
[1768919773363,4.0976245,129.09,129.05,7.74843896]
[1768919773663,4.0976245,129.09,129.04,24.72937482]
[1768919773961,6.97227101,129.09,129.05,2.87464651]
[1768919774137,6.97227101,129.09,129.05,10.62344449]
[1768919774533,2.87464651,129.08,129.04,16.98]
[1768919774844,7.74681647,129.09,129.01,19.37779252]
[1768919774845,7.06261249,129.06,129.02,2.87464651]
[1768919775053,7.06261249,129.06,129.01,27.60559911]
[1768919775447,7.06261249,129.05,129.01,24.7309526]
[1768919775967,7.06261249,129.03,128.99,7.75212403]
[1768919776171,4.18796598,129.03,129.0,7.75181401]
[1768919776574,4.18796598,129.03,128.99,10.62711443]
[1768919776757,4.18796598,129.03,129.0,2.87464651]
[1768919776953,2.87464651,129.04,129.0,2.87464651]
[1768919777266,7.06261249,129.05,129.0,2.87464651]
[1768919777448,4.18796598,129.04,129.0,2.87464651]
[1768919777966,7.74809289,129.07,129.0,2.87464651]
[1768919777967,4.18796598,129.07,129.03,2.87464651]
[1768919778463,7.06261249,129.04,128.99,7.75246792]
[1768919778664,7.06261249,129.03,128.99,7.75246792]
[1768919779047,7.06261249,129.03,128.99,10.62711443]
[1768919779247,7.06261249,129.03,128.99,7.75246792]
[1768919779449,7.06261249,129.01,128.97,7.7533896]
[1768919779754,49.44202936,129.07,128.96,7.75429075]
[1768919779755,4.18796598,128.99,128.96,7.75429075]
[1768919780464,151.54202936,129.07,128.95,16.98]
[1768919780465,7.06261249,128.98,128.95,16.98]
[1768919781055,4.18796598,128.98,128.95,24.73479611]
[1768919781254,7.06261249,129.0,128.96,2.87464651]
[1768919781459,22.32408856,129.07,128.98,2.87464651]
[1768919781460,2.87464651,129.02,128.98,2.87464651]
[1768919781779,7.06261249,129.03,128.99,2.87464651]
[1768919782154,4.18796598,129.02,128.98,2.87464651]
[1768919782355,7.74895389,129.05,128.96,2.87464651]
[1768919782356,7.06261249,129.0,128.96,2.87464651]
[1768919782553,4.18796598,128.99,128.95,19.85464651]
[1768919782756,2.87464651,129.0,128.96,10.62881659]
[1768919782970,7.06261249,129.03,128.98,2.87464651]
[1768919783155,4.18796598,129.02,128.98,2.87464651]
[1768919783355,7.06261249,129.02,128.97,2.87464651]
[1768919783573,2.87464651,129.01,128.97,2.87464651]
[1768919783772,7.06261249,129.0,128.96,2.87464651]
[1768919783976,4.18796598,128.99,128.96,7.75418789]
[1768919784277,4.18796598,128.99,128.95,19.85464651]
[1768919784472,4.18796598,128.99,128.95,27.60957383]
[1768919784751,7.75149931,129.01,128.95,16.98]
[1768919784752,7.06261249,128.98,128.95,16.98]
[1768919786176,2.87464651,128.97,128.93,10.63058809]
[1768919786358,7.06261249,128.98,128.94,7.75538904]
[1768919786759,2.87464651,128.97,128.93,10.63057133]
[1768919787077,7.75218708,129.0,128.93,27.64531354]
[1768919787078,7.06261249,129.0,128.93,27.64531354]
[1768919787283,4.18796598,129.0,128.96,2.87464651]
[1768919787967,4.18796598,129.02,128.98,2.87464651]
[1768919788168,7.06261249,129.0,128.96,2.87464651]
[1768919788474,7.75013418,129.04,128.95,16.98]
[1768919788475,4.18796598,128.97,128.95,16.98]
[1768919788680,4.12796594,128.97,128.95,16.98]
[1768919788866,2.87464651,128.98,128.95,16.98]
[1768919789185,2.87464651,128.98,128.94,7.75549999]
[1768919789481,24.71878182,129.04,128.95,7.75465197]
[1768919789686,2.87464651,129.02,128.97,2.87464651]
[1768919790484,2.87464651,129.03,128.98,2.87464651]
[1768919790674,2.87464651,129.03,128.95,44.68103331]
[1768919790675,4.18796598,129.0,128.96,2.87464651]
[1768919790880,4.18796598,129.0,128.97,7.75336034]
[1768919791067,7.06261249,129.0,128.96,2.87464651]
[1768919791268,7.06261249,129.0,128.89,7.75812531]
[1768919791269,4.18796598,128.96,128.89,7.75812531]
[1768919791463,4.18796598,128.96,128.88,0.2]
[1768919791464,7.06261249,128.93,128.9,7.95791347]
[1768919791685,2.87464651,128.94,128.9,10.83255998]
[1768919791873,2.87464651,128.91,128.9,0.2]
[1768919792064,2.87464651,128.91,128.88,0.2]
[1768919792265,2.87464651,128.92,128.88,0.2]
[1768919792464,5.9565132,128.99,128.88,3.07464651]
[1768919792465,2.87464651,128.93,128.88,3.07464651]
[1768919792670,2.87464651,128.94,128.9,10.63247457]
[1768919792877,2.87464651,128.94,128.9,7.75782806]
[1768919793466,2.87464651,128.94,128.9,10.63247457]
[1768919793662,4.18796598,128.91,128.88,3.07464651]
[1768919793889,7.06261249,128.91,128.88,0.2]
[1768919794077,2.87464651,128.9,128.88,0.2]
[1768919794277,4.18796598,128.91,128.88,7.95895616]
[1768919794589,2.87464651,128.92,128.88,7.95895616]
[1768919794883,7.06261249,128.92,128.88,7.95895616]
[1768919795284,7.06261249,128.91,128.88,0.2]
[1768919795482,7.06261249,128.9,128.88,0.2]
[1768919795870,7.06261249,128.9,128.85,10.63533961]
[1768919796187,4.18796598,128.89,128.85,2.87464651]
[1768919796386,4.18796598,128.89,128.83,19.60484412]
[1768919796387,4.18796598,128.86,128.83,0.2]
[1768919796589,7.06261249,128.86,128.83,7.96203893]
[1768919796890,4.18796598,128.86,128.83,0.2]
[1768919797072,7.06261249,128.84,128.83,0.2]
[1768919797275,7.06261249,128.86,128.82,7.762411]
[1768919797472,7.06261249,128.86,128.82,7.76255891]
[1768919797698,7.06261249,128.88,128.84,2.87464651]
[1768919797903,7.06261249,128.87,128.83,7.76202749]
[1768919798192,7.06261249,128.86,128.81,27.61763997]
[1768919798396,7.06261249,128.85,128.81,16.98]
[1768919798581,7.06261249,128.84,128.81,16.98]
[1768919798907,7.06261249,128.82,128.78,7.76498339]
[1768919799202,7.06261249,128.82,128.75,20.63571133]
[1768919799203,7.06261249,128.81,128.77,7.76530182]
[1768919799567,7.06261249,128.81,128.78,7.76513791]
[1768919799568,4.18796598,128.81,128.78,7.76513791]
[1768919799768,2.87464651,128.82,128.79,7.76451639]
[1768919799966,4.18796598,128.83,128.79,7.76451639]
[1768919800372,4.18796598,128.85,128.8,10.63841032]
[1768919800576,7.06261249,128.85,128.8,10.63841032]
[1768919800776,4.18796598,128.82,128.79,24.76435244]
[1768919801004,7.76102901,128.85,128.76,17.0]
[1768919801005,7.0844868,128.8,128.76,17.0]
[1768919801181,7.0844868,128.79,128.76,17.0]
[1768919802072,4.18796598,128.84,128.77,1.21902191]
[1768919802404,7.0844868,128.81,128.77,2.89652082]
[1768919802589,7.0844868,128.8,128.76,24.76628235]
[1768919802910,2.89652082,128.82,128.78,2.89652082]
[1768919803189,7.0844868,128.83,128.76,45.40127195]
[1768919803398,7.21778933,128.82,128.77,2.89652082]
[1768919803568,7.21778933,128.82,128.78,2.89652082]
[1768919804291,4.32126851,128.82,128.78,2.89652082]
[1768919804491,4.32126851,128.84,128.79,2.89652082]
[1768919804671,4.32126851,128.88,128.82,2.89652082]
[1768919804870,4.35056344,128.87,128.83,2.89652082]
[1768919805091,7.24708426,128.87,128.83,2.89652082]
[1768919805301,4.35056344,128.87,128.82,17.0]
[1768919805597,7.24708426,128.86,128.82,17.0]
[1768919805787,7.24708426,128.86,128.82,19.89652082]
[1768919806302,4.35056344,128.88,128.82,17.0]
[1768919806502,4.35056344,128.88,128.83,2.89652082]
[1768919806796,7.24708426,128.86,128.82,19.89652082]
[1768919806998,7.24708426,128.85,128.82,17.0]
[1768919807175,2.89652082,128.86,128.82,19.89652082]
[1768919807569,27.15283165,128.9,128.82,19.89652082]
[1768919807570,2.89652082,128.84,128.82,17.0]
[1768919807777,4.35056344,128.85,128.81,10.65988784]
[1768919807997,7.24708426,128.85,128.81,10.65988784]
[1768919808182,7.24708426,128.84,128.8,2.89652082]
[1768919808501,7.24708426,128.83,128.79,17.0]
[1768919808705,2.89652082,128.82,128.78,2.89652082]
[1768919808916,4.35056344,128.8,128.77,17.0]
[1768919809210,7.24708426,128.8,128.77,17.0]
[1768919809505,7.24708426,128.78,128.73,3.09652082]
[1768919809797,7.24708426,128.78,128.74,17.0]
[1768919810230,7.24708426,128.78,128.74,19.89652082]
[1768919810704,2.89652082,128.79,128.75,2.89652082]
[1768919810905,4.35056344,128.78,128.73,10.86432184]
[1768919811201,7.24708426,128.78,128.73,20.09652082]
[1768919811503,2.89652082,128.77,128.73,20.09652082]
[1768919811702,4.35056344,128.76,128.73,24.96796503]
[1768919811909,7.24708426,128.75,128.73,17.2]
[1768919812205,2.89652082,128.74,128.73,0.2]
[1768919812576,2.89652082,128.74,128.66,41.7575731]
[1768919812577,4.35056344,128.73,128.67,7.77165838]
[1768919812784,2.89652082,128.71,128.68,7.77118078]
[1768919812987,2.89652082,128.7,128.67,7.77181938]
[1768919813208,2.89652082,128.7,128.66,19.89652082]
[1768919813209,4.35056344,128.74,128.69,2.89652082]
[1768919813387,4.35056344,128.74,128.7,2.89652082]
[1768919813581,7.24708426,128.74,128.69,20.09652082]
[1768919813780,4.35056344,128.76,128.7,2.89652082]
[1768919813980,2.89652082,128.75,128.7,2.89652082]
[1768919814303,7.24708426,128.75,128.7,2.89652082]
[1768919814682,2.89652082,128.76,128.72,2.89652082]
[1768919814888,4.35056344,128.8,128.75,2.89652082]
[1768919815100,4.35056344,128.8,128.74,7.76701388]
[1768919815101,4.35056344,128.8,128.76,2.89652082]
[1768919815290,7.24708426,128.81,128.77,2.89652082]
[1768919815497,4.35056344,128.81,128.77,2.89652082]
[1768919815700,2.89652082,128.83,128.78,2.89652082]
[1768919816003,7.24708426,128.85,128.8,2.89652082]
[1768919816306,7.24708426,128.85,128.74,32.53008643]
[1768919816307,4.35056344,128.87,128.82,2.89652082]
[1768919816498,4.35056344,128.89,128.83,4.31554273]
[1768919816693,7.24708426,128.88,128.83,19.89652082]
[1768919817096,4.35056344,128.88,128.84,10.65808555]
[1768919817295,58.67462157,128.94,128.86,2.89652082]
[1768919817296,4.35056344,128.92,128.86,2.89652082]
[1768919817499,4.35056344,128.92,128.87,2.89652082]
[1768919817687,4.35056344,128.92,128.88,2.89652082]
[1768919817886,7.24708426,128.92,128.88,2.89652082]
[1768919818093,4.35056344,128.92,128.89,2.89652082]
[1768919818310,4.35056344,128.91,128.87,17.0]
[1768919818503,7.24708426,128.9,128.85,2.89652082]
[1768919819206,2.89652082,128.91,128.87,2.89652082]
[1768919819412,2.89652082,128.9,128.86,7.76036008]
[1768919819592,4.35056344,128.91,128.87,2.89652082]
[1768919819793,7.24708426,128.91,128.86,10.6568809]
[1768919820204,7.24708426,128.9,128.85,10.65726408]
[1768919820596,7.24708426,128.9,128.86,2.89652082]
[1768919820906,2.89652082,128.89,128.85,7.76092429]
[1768919821098,4.35056344,128.92,128.86,2.89652082]
[1768919821407,7.24708426,128.89,128.85,2.89652082]
[1768919821704,7.24708426,128.91,128.86,2.89652082]
[1768919821910,2.89652082,128.9,128.85,30.0598647]
[1768919822107,4.35056344,128.95,128.89,2.89652082]
[1768919822300,4.35056344,128.95,128.9,2.89652082]
[1768919822301,4.35056344,128.94,128.9,2.89652082]
[1768919822502,2.89652082,128.91,128.88,17.0]
[1768919822802,2.89652082,128.93,128.88,19.89652082]
[1768919823109,7.24708426,128.9,128.88,17.0]
[1768919823308,2.89652082,128.89,128.85,19.89652082]
[1768919823485,7.24708426,128.89,128.85,17.0]
[1768919823684,4.35056344,128.91,128.85,19.89652082]
[1768919823891,2.89652082,128.9,128.86,2.89652082]
[1768919824296,2.89652082,128.92,128.88,7.75884692]
[1768919824610,24.7313488,128.96,128.9,2.89652082]
[1768919824611,2.89652082,128.95,128.9,2.89652082]
[1768919824905,2.89652082,128.95,128.89,44.15474552]
[1768919824906,7.24708426,128.94,128.89,27.65488183]
[1768919825287,4.35056344,128.96,128.92,2.89652082]
[1768919825486,4.35056344,128.98,128.93,2.89652082]
[1768919825686,7.24708426,128.98,128.93,2.89652082]
[1768919825902,4.35056344,128.97,128.93,2.89652082]
[1768919826515,4.35056344,128.99,128.95,2.89652082]
[1768919826730,4.35056344,129.01,128.96,2.89652082]
[1768919827028,7.24708426,128.99,128.93,17.0]
[1768919827321,7.24708426,128.98,128.94,2.89652082]
[1768919827508,4.35056344,128.98,128.95,2.89652082]
[1768919827698,4.35056344,129.0,128.96,2.89652082]
[1768919828015,4.35056344,128.98,128.94,2.89652082]
[1768919828219,4.35056344,129.02,128.97,2.89652082]
[1768919828421,4.35056344,129.02,128.98,2.89652082]
[1768919828720,7.24708426,129.02,128.97,19.89652082]
[1768919828884,7.24708426,129.04,128.99,2.89652082]
[1768919829087,4.35056344,129.04,129.0,2.89652082]
[1768919829516,2.89652082,129.03,128.99,7.7523114]
[1768919829821,4.35056344,129.03,129.0,10.64827019]
[1768919830190,0.1,129.05,129.01,2.89652082]
[1768919830520,0.1,129.05,129.02,2.89652082]
[1768919830688,7.24708426,129.08,129.01,17.0]
[1768919830894,2.89652082,129.06,129.01,19.89652082]
[1768919831084,7.24708426,129.07,129.02,2.89652082]
[1768919831304,7.24708426,129.07,129.01,17.0]
[1768919831305,7.24708426,129.05,129.01,19.89652082]
[1768919831506,7.24708426,129.04,129.01,17.0]
[1768919832240,4.35056344,129.03,128.99,2.89652082]
[1768919832412,4.35056344,129.03,128.98,17.0]
[1768919832413,7.24708426,129.02,128.98,24.75299027]
[1768919832622,4.35056344,129.02,128.98,27.64951109]
[1768919832820,7.24708426,129.02,128.98,17.0]
[1768919833115,4.35056344,129.02,128.98,19.89652082]
[1768919833306,2.89652082,129.08,128.98,19.89652082]
[1768919833307,4.35056344,129.04,129.0,2.89652082]
[1768919833511,4.35056344,129.04,129.01,2.89652082]
[1768919833709,7.24708426,129.06,129.01,2.89652082]
[1768919833911,4.35056344,129.08,129.03,2.89652082]
[1768919834115,4.35056344,129.07,129.03,2.89652082]
[1768919834311,4.35056344,129.07,129.02,17.0]
[1768919834312,4.35056344,129.06,129.02,19.89652082]
[1768919834511,4.35056344,129.1,129.05,2.89652082]
[1768919834900,7.33086934,129.09,129.05,2.89652082]
[1768919835095,7.33086934,129.09,129.04,2.89652082]
[1768919835420,4.43434852,129.06,129.02,27.64705563]
[1768919835618,7.33086934,129.06,129.02,24.75053481]
[1768919835798,7.33086934,129.06,129.02,17.0]
[1768919835991,7.33086934,129.05,129.02,17.0]
[1768919836414,4.43434852,129.05,129.02,17.0]
[1768919836615,7.33086934,129.05,129.01,7.75118155]
[1768919836821,7.33086934,129.05,129.01,10.64770237]
[1768919837208,7.33086934,129.05,129.0,10.64824731]
[1768919837406,4.43434852,129.05,129.02,2.89652082]
[1768919837626,4.43434852,129.05,129.01,2.89652082]
[1768919837922,4.43434852,129.04,129.0,2.89652082]
[1768919838117,7.33086934,129.03,128.99,27.62868766]
[1768919838718,4.43434852,129.03,128.99,16.98]
[1768919838917,7.33086934,129.03,128.99,16.98]
[1768919839221,7.33086934,129.02,128.99,24.73243678]
[1768919839518,19.37006511,129.07,128.94,41.6721862]
[1768919839519,5.9565132,129.07,128.96,7.7539414]
[1768919839748,2.89652082,128.98,128.95,7.75480082]
[1768919840228,2.89652082,128.96,128.91,2.89652082]
[1768919840519,2.89652082,129.01,128.9,2.89652082]
[1768919840520,2.89652082,128.95,128.9,2.89652082]
[1768919840719,2.89652082,128.93,128.89,7.75808073]
[1768919841126,5.34408856,129.03,128.92,6.96210449]
[1768919841300,2.89652082,128.98,128.93,10.65217601]
[1768919841504,2.89652082,128.97,128.93,10.65217601]
[1768919841708,2.89652082,128.95,128.92,24.73651027]
[1768919842008,2.89652082,128.94,128.9,2.89652082]
[1768919842214,2.89652082,128.94,128.9,7.75786931]
[1768919842412,2.89652082,128.92,128.89,24.73833866]
[1768919842830,2.89652082,128.94,128.89,31.70044315]
[1768919843035,7.33086934,128.95,128.9,2.89652082]
[1768919843325,2.89652082,128.92,128.89,24.73833866]
[1768919843496,4.43434852,128.94,128.89,16.98]
[1768919843701,2.89652082,128.92,128.89,16.98]
[1768919843924,7.33086934,128.91,128.89,16.98]
[1768919844129,2.89652082,128.9,128.85,4.06558367]
[1768919844426,4.43434852,128.91,128.85,31.22887919]
[1768919844613,2.89652082,128.91,128.86,6.96210449]
[1768919845024,4.43434852,128.92,128.86,6.96210449]
[1768919845427,2.89652082,128.9,128.86,7.76007273]
[1768919846313,4.43434852,128.93,128.87,6.96210449]
[1768919846510,2.89652082,128.91,128.87,6.96210449]
[1768919846812,2.89652082,128.9,128.86,2.89652082]
[1768919847130,2.89652082,128.89,128.85,2.89652082]
[1768919847430,7.33086934,128.86,128.8,7.76339697]
[1768919847734,12.19367684,128.88,128.81,6.96210449]
[1768919847920,2.89652082,128.85,128.8,30.06985567]
[1768919848229,2.89652082,128.85,128.81,6.96210449]
[1768919848423,4.43434852,128.87,128.81,6.96210449]
[1768919848626,2.89652082,128.9,128.85,6.96210449]
[1768919848808,7.33086934,128.9,128.85,6.96210449]
[1768919849514,7.33086934,128.89,128.84,2.89652082]
[1768919849717,2.89652082,128.88,128.83,31.72381525]
[1768919849934,2.89652082,128.87,128.83,21.06558367]
[1768919850116,2.89652082,128.87,128.83,17.0]
[1768919850426,2.89652082,128.88,128.84,2.89652082]
[1768919850617,2.89652082,128.87,128.83,23.96210449]
[1768919850817,2.89652082,128.87,128.83,17.0]
[1768919851013,2.89652082,128.86,128.83,17.0]
[1768919851352,2.89652082,128.84,128.8,17.0]
[1768919851635,2.89652082,128.84,128.8,27.66020124]
[1768919851830,2.89652082,128.86,128.81,6.96210449]
[1768919852007,2.89652082,128.88,128.83,2.89652082]
[1768919852824,2.89652082,128.87,128.83,2.89652082]
[1768919853211,2.89652082,128.88,128.83,2.89652082]
[1768919853832,7.33086934,128.85,128.8,19.89652082]
[1768919854045,7.33086934,128.85,128.73,2.89652082]
[1768919854046,4.43434852,128.83,128.76,6.96210449]
[1768919854209,2.89652082,128.82,128.77,10.66208149]
[1768919854408,2.89652082,128.82,128.77,6.96210449]
[1768919854608,2.89652082,128.81,128.77,4.06558367]
[1768919854805,2.89652082,128.82,128.77,14.72754973]
[1768919855033,2.89652082,128.81,128.77,4.06558367]
[1768919855615,2.89652082,128.82,128.78,7.76513293]
[1768919855812,2.89652082,128.83,128.78,14.72723742]
[1768919856028,2.89652082,128.82,128.78,14.72723742]
[1768919856221,2.89652082,128.82,128.78,11.8307166]
[1768919856420,2.89652082,128.81,128.76,23.96210449]
[1768919856618,2.89652082,128.82,128.78,2.89652082]
[1768919857022,2.78651403,128.82,128.78,2.89652082]
[1768919857223,4.43434852,128.87,128.81,6.96210449]
[1768919857411,4.43434852,128.89,128.83,2.89652082]
[1768919857611,2.89652082,128.88,128.84,2.89652082]
[1768919857814,4.43434852,128.89,128.84,2.89652082]
[1768919858040,15.08951446,128.89,128.84,2.89652082]
[1768919858336,15.08951446,128.89,128.83,7.76200252]
[1768919858337,4.43434852,128.87,128.83,2.89652082]
[1768919858538,4.43434852,128.87,128.84,2.89652082]
[1768919858724,7.33086934,128.89,128.84,2.89652082]
[1768919858910,7.75755575,128.91,128.86,2.89652082]
[1768919859111,15.08842509,128.91,128.86,2.89652082]
[1768919859315,7.33086934,128.91,128.86,2.89652082]
[1768919859740,12.19247467,128.9,128.85,2.89652082]
[1768919859917,2.89652082,128.89,128.85,2.89652082]
[1768919860524,2.89652082,128.89,128.84,27.65805124]
[1768919860721,7.33086934,128.86,128.81,11.82860936]
[1768919860936,7.33086934,128.86,128.82,7.76268677]
[1768919861240,7.33086934,128.86,128.81,14.72523637]
[1768919861647,4.43434852,128.89,128.83,6.96210449]
[1768919861849,7.33086934,128.89,128.84,6.96210449]
[1768919862051,7.33086934,128.89,128.81,27.17061856]
[1768919862052,2.89652082,128.88,128.83,2.89652082]
[1768919862544,2.89652082,128.88,128.84,2.89652082]
[1768919862748,7.33086934,128.89,128.84,2.89652082]
[1768919863036,7.33086934,128.89,128.85,2.89267827]
[1768919863037,4.43434852,128.89,128.85,2.89267827]
[1768919863238,2.89267827,128.91,128.87,2.89267827]
[1768919863417,2.89267827,128.9,128.86,7.16129008]
[1768919863613,15.00733074,128.92,128.87,2.89267827]
[1768919863824,4.35751724,128.96,128.91,2.89267827]
[1768919864145,4.35751724,128.98,128.92,4.26861181]
[1768919864440,7.35019551,129.0,128.95,2.89267827]
[1768919864842,7.02819716,128.98,128.94,2.89267827]
[1768919865032,7.02819716,128.98,128.93,2.89267827]
[1768919865343,7.02819716,128.98,128.92,21.2684516]
[1768919865539,7.02819716,128.97,128.92,19.89267827]
[1768919865717,7.75434243,128.96,128.92,2.89267827]
[1768919865920,7.02819716,128.95,128.91,2.89267827]
[1768919866127,7.02819716,128.94,128.89,24.75830479]
[1768919866425,7.02819716,128.94,128.89,27.65098306]
[1768919866640,2.89267827,128.91,128.86,21.2684516]
[1768919866831,7.02819716,128.92,128.87,2.89267827]
[1768919867152,11.88986132,128.96,128.9,7.16112987]
[1768919867336,2.89267827,128.94,128.89,2.89267827]
[1768919867548,2.89267827,128.93,128.88,4.2684516]
[1768919867750,2.89267827,128.93,128.89,7.7585538]
[1768919868048,2.89267827,128.95,128.9,7.16112987]
[1768919868243,2.89267827,128.95,128.91,7.16112987]
[1768919868423,2.89267827,128.95,128.9,2.89267827]
[1768919868835,2.89267827,128.95,128.91,2.89267827]
[1768919869038,2.89267827,128.96,128.91,7.16112987]
[1768919869240,2.89267827,128.95,128.91,7.16112987]
[1768919869742,7.02819716,128.96,128.91,7.16112987]
[1768919869953,14.78261742,128.96,128.91,7.16112987]
[1768919870455,11.88949462,128.97,128.91,14.91846101]
[1768919870652,7.02819716,128.97,128.93,2.89267827]
[1768919870858,7.02819716,128.97,128.92,7.16112987]
[1768919871040,2.89267827,128.95,128.9,31.91900827]
[1768919871246,2.89267827,128.95,128.91,2.89267827]
[1768919872940,14.78259799,128.96,128.91,2.89267827]
[1768919874557,4.13551889,128.96,128.92,2.89267827]
[1768919874858,7.02819716,128.98,128.93,7.16112987]
[1768919875451,7.02819716,128.98,128.94,2.89267827]
[1768919875846,7.02819716,128.96,128.91,10.64999365]
[1768919876049,7.02819716,128.96,128.91,14.91844525]
[1768919876448,7.02819716,128.95,128.9,24.7579337]
[1768919876660,7.02819716,128.95,128.91,2.89267827]
[1768919876862,4.13551889,128.95,128.91,2.89267827]
[1768919877166,2.89267827,128.95,128.91,2.89267827]
[1768919877466,7.02819716,128.94,128.89,10.6510561]
[1768919877763,4.13551889,128.89,128.84,4.2684516]
[1768919877965,2.89267827,128.88,128.84,4.2684516]
[1768919878144,2.89267827,128.89,128.84,14.92229367]
[1768919878540,2.89267827,128.88,128.84,12.0296154]
[1768919878753,2.89267827,128.87,128.82,7.16112987]
[1768919878952,2.89267827,128.86,128.82,12.03113881]
[1768919879150,2.89267827,128.87,128.82,14.92381708]
[1768919879347,2.89267827,128.87,128.82,12.03113881]
[1768919879564,2.89267827,128.87,128.82,14.92381708]
[1768919879764,2.89267827,128.86,128.82,12.03113881]
[1768919880066,2.89267827,128.86,128.8,19.40911513]
[1768919880067,2.89267827,128.84,128.78,23.68061428]
[1768919880249,2.89267827,128.83,128.79,12.03267439]
[1768919880567,4.13551889,128.85,128.81,4.2684516]
[1768919880568,2.89267827,128.85,128.81,4.2684516]
[1768919880758,2.89267827,128.83,128.79,14.92545796]
[1768919880961,2.89267827,128.84,128.81,4.2684516]
[1768919881265,11.89527678,128.87,128.81,4.2684516]
[1768919881266,2.89267827,128.85,128.81,4.2684516]
[1768919881464,2.89267827,128.86,128.82,4.2684516]
[1768919881672,2.89267827,128.83,128.8,4.2684516]
[1768919881967,2.89267827,128.82,128.78,24.16112987]
[1768919882166,27.15721201,128.88,128.82,4.2684516]
[1768919882167,11.8948414,128.88,128.82,4.2684516]
[1768919882368,2.89267827,128.87,128.82,7.16112987]